bitfinex/quotes_ETHUSD_20251015
["timestamp","ask_amount","ask_price","bid_price","bid_amount"]
[1760554671066,0.3,4019.9,4019.2,0.2178]
[1760554671266,2.48770885,4019.8,4018.8,0.2178]
[1760554671562,1.728,4019.8,4018.8,0.2178]
[1760554671745,1.728,4019.8,4017.5,0.7481306]
[1760554671746,1.728,4019.6,4018.4,0.4659]
[1760554671942,2.48809789,4019.2,4018.4,0.4659]
[1760554672265,2.48811977,4019.1,4018.4,0.4659]
[1760554672468,2.48805962,4019.2,4018.4,0.4659]
[1760554672663,2.48812849,4019.1,4018.4,0.4659]
[1760554672864,0.0049,4019.3,4017.9,0.4659]
[1760554673092,2.48831848,4018.8,4017.9,0.4659]
[1760554673239,2.48830496,4018.8,4017.9,0.4659]
[1760554673639,2.48861501,4018.3,4017.6,0.6993]
[1760554674067,2.48862599,4018.3,4017.6,0.6993]
[1760554674267,1.8894,4018.9,4017.6,0.6993]
[1760554674467,2.48879495,4018.1,4017.6,0.6993]
[1760554674778,0.0079,4018.6,4017.1,0.4359]
[1760554675068,2.48886224,4018.0,4017.1,0.4359]
[1760554675245,2.48886224,4018.0,4017.1,2.92524311]
[1760554675649,2.48855265,4018.4,4017.1,0.4359]
[1760554675841,0.0092,4018.3,4017.0,0.2178]
[1760554676039,2.48855265,4018.4,4017.0,0.2178]
[1760554676040,2.48906302,4017.6,4017.0,0.2178]
[1760554676541,0.124,4017.4,4017.0,0.2178]
[1760554677190,2.48925142,4017.3,4016.5,2.7230787]
[1760554677499,0.124,4017.0,4016.6,2.48965767]
[1760554677699,0.124,4017.0,4016.6,2.92555767]
[1760554678399,0.124,4017.0,4016.5,0.2334]
[1760554678400,0.124,4017.0,4016.5,2.72311931]
[1760554678601,0.124,4017.0,4016.5,0.2334]
[1760554678901,0.124,4016.5,4016.1,2.70763718]
[1760554679078,0.124,4016.5,4016.1,0.2177]
[1760554679713,0.0118,4016.8,4015.7,0.4359]
[1760554680016,0.124,4016.1,4015.7,0.4359]
[1760554680183,0.124,4016.1,4015.7,2.92611673]
[1760554680386,0.124,4016.1,4015.9,2.4900485]
[1760554680613,0.124,4016.1,4016.0,2.49003984]
[1760554681104,0.124,4016.1,4015.9,2.49010149]
[1760554682292,0.124,4016.1,4016.0,2.49003984]
[1760554682807,0.124,4016.1,4015.6,2.92814981]
[1760554683004,0.124,4016.1,4015.9,2.49008095]
[1760554683167,0.124,4016.1,4016.0,2.49003984]
[1760554683780,0.124,4016.1,4015.7,2.9260938]
[1760554683980,0.124,4016.1,4016.0,2.49003984]
[1760554685316,0.1506,4017.3,4016.9,2.48942774]
[1760554685475,10.1535,4018.9,4017.0,0.02489419]
[1760554685476,0.1506,4018.0,4017.0,0.02489419]
[1760554685669,0.1506,4018.0,4016.9,0.4359]
[1760554685670,0.124,4017.2,4017.1,2.92525799]
[1760554685877,0.1493,4018.4,4017.1,0.4359]
[1760554686071,0.1493,4018.4,4017.2,0.02489296]
[1760554686382,0.1535,4018.9,4016.8,0.2177]
[1760554686383,0.1535,4018.9,4018.2,2.4886555]
[1760554686679,0.1535,4018.9,4018.2,2.48866243]
[1760554686874,2.4881487,4019.1,4018.3,2.48856605]
[1760554687108,2.4881487,4019.1,4018.4,2.48853586]
[1760554687309,1.728,4019.1,4018.5,2.4884865]
[1760554687508,0.152,4019.2,4018.3,2.94939549]
[1760554687709,2.63943883,4020.2,4018.1,0.2177]
[1760554687899,2.63945062,4020.2,4019.3,2.48796786]
[1760554688101,0.3,4019.9,4019.3,2.48796786]
[1760554688409,0.3,4019.9,4019.4,2.48793255]
[1760554688624,0.3,4019.9,4019.1,0.2177]
[1760554688909,0.1409,4019.8,4018.7,0.2177]
[1760554689114,2.48794527,4019.4,4018.7,0.2177]
[1760554689316,2.48798626,4019.4,4018.7,0.2177]
[1760554689511,2.48780973,4019.6,4018.7,0.2177]
[1760554689809,0.1409,4019.8,4018.7,0.2177]
[1760554689810,2.48794432,4019.4,4018.7,0.2177]
[1760554690185,2.48801205,4019.3,4018.7,0.2177]
[1760554690786,2.48781175,4019.6,4018.7,0.2177]
[1760554691113,0.3,4019.9,4018.8,0.02488304]
[1760554691315,0.3,4019.9,4019.4,2.48791836]
[1760554691630,0.3,4019.9,4019.6,2.48780728]
[1760554691921,0.3,4019.9,4019.7,2.48773968]
[1760554692302,0.3,4019.9,4019.2,0.2177]
[1760554692625,0.3,4019.9,4019.3,2.92388058]
[1760554692986,0.3,4019.9,4019.4,2.48788756]
[1760554693522,0.3,4019.9,4019.5,0.4359]
[1760554694313,0.3,4019.9,4019.5,2.92374732]
[1760554694616,0.3,4019.9,4019.5,0.4359]
[1760554694816,0.3,4019.9,4019.6,0.4359]
[1760554695436,0.3,4019.9,4019.6,2.48780168]
[1760554695597,0.3,4019.9,4019.7,2.92364332]
[1760554695922,0.3,4019.9,4019.7,2.48774332]
[1760554696222,0.3,4019.9,4019.7,0.4359]
[1760554696429,0.3,4019.9,4019.8,2.92358595]
[1760554697192,0.3,4019.9,4019.7,2.48774077]
[1760554697388,0.3,4019.9,4019.8,2.92358595]
[1760554697826,0.4475,4019.9,4018.7,0.2177]
[1760554698024,0.4475,4019.9,4019.1,0.2177]
[1760554698025,0.3,4019.9,4019.1,0.2177]
[1760554698226,2.48774044,4019.8,4019.1,0.2177]
[1760554698396,0.447,4019.9,4019.1,0.2177]
[1760554698606,0.447,4019.9,4018.7,0.2177]
[1760554698797,0.447,4019.9,4018.1,0.2177]
[1760554698798,2.48780476,4019.7,4018.6,2.48838055]
[1760554698992,2.48809899,4019.2,4018.4,0.4359]
[1760554699234,0.0995,4019.8,4018.4,0.77189427]
[1760554699406,2.4878279,4019.6,4018.7,2.48832584]
[1760554699604,2.4878279,4019.6,4018.8,2.48830448]
[1760554699805,2.48776564,4019.7,4019.0,2.48817779]
[1760554699999,0.447,4019.9,4019.0,2.48817779]
[1760554700200,0.447,4019.9,4018.9,2.4882326]
[1760554700411,0.3,4019.9,4019.2,2.48804343]
[1760554700607,0.3,4019.9,4019.1,0.2177]
[1760554700608,2.93516603,4019.9,4019.1,0.2177]
[1760554700808,2.48775075,4019.7,4018.9,2.48822813]
[1760554701018,2.48791483,4019.5,4018.3,0.2177]
[1760554701301,0.5465,4019.9,4018.5,0.4637]
[1760554701502,3.03412998,4019.9,4018.9,2.48822311]
[1760554701696,2.48786181,4019.6,4018.9,2.48822311]
[1760554702013,2.48784214,4019.6,4018.8,2.95194711]
[1760554702411,0.5465,4019.9,4018.8,0.4637]
[1760554702612,0.5465,4019.9,4018.3,0.2177]
[1760554702812,2.48801457,4019.3,4018.4,2.95223152]
[1760554703013,2.48801457,4019.3,4018.6,2.48839788]
[1760554703447,2.48794698,4019.4,4018.7,2.48835218]
[1760554704643,2.48781556,4019.6,4018.5,2.80547801]
[1760554704825,0.099,4019.5,4018.5,0.31699315]
[1760554705131,0.099,4019.5,4018.4,2.48854921]
[1760554705304,2.48801555,4019.3,4018.4,2.48854921]
[1760554705504,2.48794503,4019.4,4018.4,2.48854921]
[1760554705705,2.48802312,4019.3,4018.6,2.48838921]
[1760554706738,2.48807071,4019.2,4018.6,2.48838921]
[1760554706936,2.58689759,4019.5,4018.3,0.6814]
[1760554706937,2.48811937,4019.1,4018.4,2.49049197]
[1760554707140,2.48811937,4019.1,4018.4,3.07831296]
[1760554707338,2.48813001,4019.1,4018.4,3.07831296]
[1760554707836,0.124,4018.9,4018.4,3.07831296]
[1760554708750,2.61224389,4018.9,4018.4,0.002]
[1760554708916,2.77514389,4018.9,4018.4,0.002]
[1760554709248,0.124,4018.5,4018.4,0.002]
[1760554709954,2.61249073,4018.5,4018.4,0.002]
[1760554711441,2.71209073,4018.5,4018.4,0.002]
[1760554722130,0.124,4018.5,4018.4,0.002]
[1760554722367,0.124,4018.6,4018.4,0.4657]
[1760554722568,0.124,4018.6,4018.5,2.80646616]
[1760554722735,0.1003,4019.3,4018.5,0.31797543]
[1760554722944,2.48834372,4018.8,4018.4,0.002]
[1760554723260,2.48846474,4018.6,4018.4,0.002]
[1760554724356,2.41489073,4018.5,4018.4,0.002]
[1760554724557,2.64990231,4018.9,4018.4,0.002]
[1760554724948,2.4884809,4018.6,4018.4,0.002]
[1760554725532,2.48834699,4018.8,4018.4,0.4657]
[1760554725730,0.001,4018.5,4018.4,0.4657]
[1760554727055,0.001,4018.5,4018.4,0.002]
[1760554727257,0.001,4018.5,4018.4,0.4657]
[1760554727838,2.48949073,4018.5,4018.4,0.002]
[1760554728439,0.001,4018.5,4018.4,0.002]
[1760554728952,2.48949073,4018.5,4018.4,0.002]
[1760554733285,0.001,4018.5,4018.4,0.002]
[1760554733587,0.001,4018.5,4018.4,2.94165265]
[1760554733871,0.001,4018.5,4018.4,4.53345314]
[1760554735272,0.001,4018.5,4018.4,2.94165265]
[1760554735671,4.93711696,4018.5,4018.4,0.002]
[1760554735876,0.001,4018.5,4018.4,0.002]
[1760554736245,2.48949073,4018.5,4018.4,0.002]
[1760554746763,2.48949073,4018.5,4018.4,0.4691]
[1760554746764,0.001,4018.5,4018.4,0.4691]
[1760554747466,2.48949073,4018.5,4018.4,0.4691]
[1760554747666,2.48949073,4018.5,4018.4,0.002]
[1760554749012,2.58909073,4018.5,4018.4,0.002]
[1760554750685,2.48880039,4018.0,4017.9,1e-08]
[1760554750998,14.47838546,4018.0,4017.9,1e-08]
[1760554751382,14.57798546,4018.0,4017.9,1e-08]
[1760554751869,14.70249717,4018.0,4017.9,1e-08]
[1760554752098,4.21680039,4018.0,4017.9,1e-08]
[1760554752302,2.48880039,4018.0,4017.9,1e-08]
[1760554769397,2.58840039,4018.0,4017.9,1e-08]
[1760554772879,4.31640039,4018.0,4017.9,1e-08]
[1760554773226,34.67401726,4018.0,4017.9,1e-08]
[1760554775506,38.74063183,4018.0,4017.9,1e-08]
[1760554776619,39.37423183,4018.0,4017.9,1e-08]
[1760554777402,2.48911014,4017.5,4017.4,0.002]
[1760554777728,38.28372471,4017.5,4017.4,0.002]
[1760554778088,38.38512471,4017.5,4017.4,0.002]
[1760554778491,2.48935799,4017.1,4017.0,0.002]
[1760554778717,36.55597256,4017.1,4017.0,0.002]
[1760554778904,38.38537256,4017.1,4017.0,0.002]
[1760554779305,39.01897256,4017.1,4017.0,0.002]
[1760554780213,12.08957256,4017.1,4017.0,0.002]
[1760554780696,8.91757256,4017.1,4017.0,0.002]
[1760554781518,39.01897256,4017.1,4017.0,0.002]
[1760554782812,44.34141996,4017.0,4016.9,1e-08]
[1760554783011,34.44281996,4017.0,4016.9,1e-08]
[1760554784421,8.91763453,4017.0,4016.9,1e-08]
[1760554785095,48.91763453,4017.0,4016.9,1e-08]
[1760554785423,38.91763453,4017.0,4016.9,1e-08]
[1760554786503,23.03263453,4017.0,4016.9,1e-08]
[1760554787093,23.13403453,4017.0,4016.9,1e-08]
[1760554788296,23.46873473,4017.0,4016.9,1e-08]
[1760554790331,29.86873473,4017.0,4016.9,1e-08]
[1760554791008,29.76733473,4017.0,4016.9,1e-08]
[1760554791625,29.86873473,4017.0,4016.9,1e-08]
[1760554792197,45.75373473,4017.0,4016.9,1e-08]
[1760554794730,2.48966787,4016.6,4016.5,0.002]
[1760554794928,38.28428244,4016.6,4016.5,0.002]
[1760554795227,8.72038264,4016.6,4016.5,0.002]
[1760554795530,38.72038264,4016.6,4016.5,0.002]
[1760554795916,4.21816385,4015.8,4015.7,0.2168]
[1760554796117,2.49022586,4015.7,4015.4,0.2139]
[1760554796523,2.49034989,4015.5,4015.4,0.1659]
[1760554796730,8.28496446,4015.5,4015.4,0.6083]
[1760554799819,2.49047393,4015.3,4015.1,0.4424]
[1760554800014,2.49047393,4015.3,4015.2,0.4444]
[1760554800709,2.49047393,4015.3,4015.2,0.002]
[1760554801029,5.18677413,4015.3,4015.2,0.002]
[1760554801204,4.21847393,4015.3,4015.2,0.002]
[1760554801404,4.21847393,4015.3,4015.2,0.4444]
[1760554802435,0.3347002,4016.4,4015.2,0.4444]
[1760554802670,0.4444,4016.7,4016.3,0.2139]
[1760554802850,2.48979185,4016.4,4016.3,0.2139]
[1760554803160,2.48966637,4016.7,4016.3,0.2139]
[1760554803368,4.06661457,4016.8,4016.3,0.6563]
[1760554803570,2.48979185,4016.4,4016.3,0.2139]
[1760554804127,2.48979185,4016.4,4016.3,0.6563]
[1760554805396,6.55640642,4016.4,4016.3,0.2139]
[1760554805683,2.49010184,4015.9,4015.8,0.4424]
[1760554805853,1.728,4016.3,4015.8,0.4424]
[1760554806178,5.79461457,4016.8,4016.2,0.2139]
[1760554806377,2.48979185,4016.4,4016.3,0.4424]
[1760554806680,4.21785384,4016.3,4016.2,0.2139]
[1760554807277,2.49006168,4016.0,4015.2,0.002]
[1760554807474,4.06661457,4016.0,4015.3,0.4424]
[1760554808058,2.49038701,4015.5,4015.3,0.4424]
[1760554808565,1.728,4015.9,4015.2,0.002]
[1760554808769,2.49047393,4015.3,4015.2,0.002]
[1760554810063,4.85207393,4015.3,4015.2,0.002]
[1760554810264,4.95107393,4015.3,4015.2,0.002]
[1760554810768,4.97996156,4015.3,4015.2,0.002]
[1760554812045,5.07896156,4015.3,4015.2,0.002]
[1760554812785,30.0,4015.2,4013.9,0.231]
[1760554812960,30.0,4015.2,4013.2,0.4424]
[1760554812961,5.79461457,4014.1,4014.0,0.4424]
[1760554813162,1.728,4014.1,4014.0,0.4424]
[1760554813486,4.21921845,4014.1,4014.0,0.4424]
[1760554813783,1.728,4014.1,4014.0,0.4424]
[1760554814289,4.21921845,4014.1,4014.0,0.4424]
[1760554814583,2.49146672,4013.7,4013.6,0.2139]
[1760554814983,3.39402603,4013.9,4013.6,0.2139]
[1760554815191,1.728,4014.1,4013.6,0.2139]
[1760554815353,2.49129021,4014.0,4013.6,0.6563]
[1760554815684,4.21922217,4014.1,4013.7,0.4424]
[1760554815866,4.21922217,4014.1,4013.8,0.4424]
[1760554816187,3.39402603,4014.3,4013.9,0.4424]
[1760554816375,2.49136322,4013.9,4013.6,0.2139]
[1760554817090,2.49140465,4013.8,4013.7,0.4424]
[1760554817285,2.49140465,4013.8,4013.6,0.2139]
[1760554817286,2.49146672,4013.7,4013.6,0.2139]
[1760554818491,2.49159088,4013.5,4013.4,0.4424]
[1760554818986,2.49168037,4013.4,4013.2,0.2139]
[1760554819186,5.88561989,4013.5,4013.3,0.4424]
[1760554819389,2.49171504,4013.3,4013.2,0.2139]
[1760554819894,2.49171504,4013.3,4013.2,0.6563]
[1760554820193,2.49169049,4013.4,4013.2,0.6563]
[1760554820394,3.39402603,4013.5,4013.2,0.6563]
[1760554820690,3.39402603,4014.0,4013.3,0.4625]
[1760554820864,2.49157711,4013.6,4013.3,0.4625]
[1760554821069,2.49161007,4013.5,4013.3,0.4625]
[1760554821286,2.49161007,4013.5,4013.4,0.4625]
[1760554822495,2.49161007,4013.5,4013.1,0.002]
[1760554822496,2.49177713,4013.2,4013.1,0.002]
[1760554822798,35.13865602,4013.2,4013.1,0.002]
[1760554822978,4.50505602,4013.2,4013.1,0.002]
[1760554823160,4.21977713,4013.2,4013.1,0.002]
[1760554824983,4.95527713,4013.2,4013.1,0.002]
[1760554825160,4.85337713,4013.2,4013.1,0.002]
[1760554825567,4.95527713,4013.2,4013.1,0.002]
[1760554826295,34.95527713,4013.2,4013.1,0.002]
[1760554828390,34.85337713,4013.2,4013.1,0.002]
[1760554828899,34.95527713,4013.2,4013.1,0.002]
[1760554829503,38.63458205,4013.2,4013.1,0.002]
[1760554829702,34.95527713,4013.2,4013.1,0.002]
[1760554831476,38.34930316,4013.2,4013.1,0.002]
[1760554832304,36.51940316,4013.2,4013.1,0.002]
[1760554832490,38.24740316,4013.2,4013.1,0.002]
[1760554832795,38.34930316,4013.2,4013.1,0.002]
[1760554835502,8.34930316,4013.2,4013.1,0.002]
[1760554835703,38.34930316,4013.2,4013.1,0.002]
[1760554836209,41.74332919,4013.2,4013.1,0.002]
[1760554836373,42.02860808,4013.2,4013.1,0.002]
[1760554836680,2.49208762,4012.7,4012.6,1e-08]
[1760554836886,2.49208762,4012.7,4012.2,0.002]
[1760554836887,4.85393606,4012.3,4012.2,0.002]
[1760554837182,38.24796209,4012.3,4012.2,0.002]
[1760554838508,48.63754098,4012.3,4012.2,0.002]
[1760554838819,38.63754098,4012.3,4012.2,0.002]
[1760554839287,43.1260603,4012.1,4012.0,1e-08]
[1760554839490,34.8540603,4012.1,4012.0,1e-08]
[1760554839997,38.35238633,4012.1,4012.0,1e-08]
[1760554840190,4.9583603,4012.1,4012.0,1e-08]
[1760554840506,38.63766522,4012.1,4012.0,1e-08]
[1760554842502,34.9583603,4012.1,4012.0,1e-08]
[1760554842820,38.35238633,4012.1,4012.0,1e-08]
[1760554843208,38.63766522,4012.1,4012.0,1e-08]
[1760554843423,3.12637096,4011.6,4011.5,0.002]
[1760554843594,41.64242302,4011.6,4011.5,0.002]
[1760554843789,41.64242302,4011.6,4010.1,0.4625]
[1760554843790,2.49364121,4010.2,4010.1,0.4625]
[1760554843990,5.88766724,4010.2,4010.1,0.4625]
[1760554844212,7.61566724,4010.2,4010.1,0.6873]
[1760554845185,4.22170339,4010.1,4010.0,0.2248]
[1760554845827,4.22170339,4010.1,4010.0,0.6873]
[1760554846616,4.22170339,4010.1,4010.0,0.2248]
[1760554847194,4.22170339,4010.1,4010.0,0.6873]
[1760554848023,4.22170339,4010.1,4010.0,0.2248]
[1760554848321,4.22170339,4010.1,4010.0,0.6873]
[1760554848703,7.61572942,4010.1,4010.0,0.6873]
[1760554848905,4.22170339,4010.1,4010.0,0.6873]
[1760554850130,7.61572942,4010.1,4010.0,0.6873]
[1760554850951,7.61572942,4010.1,4010.0,0.6825]
[1760554851927,2.49388996,4009.8,4009.7,0.6805]
[1760554852142,2.49388996,4009.8,4009.7,0.2228]
[1760554852295,5.88791599,4009.8,4009.7,0.2228]
[1760554852712,5.88791599,4009.8,4009.7,0.6805]
[1760554853337,2.49388996,4009.8,4009.7,0.6805]
[1760554854236,2.49401436,4009.6,4009.5,0.002]
[1760554855097,2.49401436,4009.6,4009.5,0.4767]
[1760554858632,1.728,4010.1,4009.5,0.4767]
[1760554858831,2.49390421,4009.8,4009.5,0.4767]
[1760554859436,2.49384048,4009.9,4009.5,0.002]
[1760554859639,2.49384048,4009.9,4009.6,0.4747]
[1760554859817,2.49389169,4009.8,4009.7,0.4747]
[1760554860340,1.728,4010.0,4009.7,0.4747]
[1760554860341,2.49383776,4009.9,4009.7,0.4747]
[1760554860637,2.61795226,4009.7,4009.5,0.002]
[1760554860807,0.124,4009.7,4009.5,0.002]
[1760554861020,2.6179565,4009.7,4009.5,0.002]
[1760554861349,1.852,4009.7,4009.6,0.4747]
[1760554866042,2.61795216,4009.7,4009.5,0.002]
[1760554866248,2.49401436,4009.6,4009.5,0.002]
[1760554866543,5.88804039,4009.6,4009.5,0.002]
[1760554867656,7.61604039,4009.6,4009.5,0.002]
[1760554868247,7.61604039,4009.6,4009.5,0.4767]
[1760554868248,1.728,4009.6,4009.5,0.4767]
[1760554868445,0.2314,4014.0,4009.7,2.49395216]
[1760554868652,2.49190592,4013.0,4011.7,0.2262]
[1760554868854,0.124,4011.8,4011.7,2.71890882]
[1760554869052,0.124,4011.8,4011.1,0.124]
[1760554869217,3.39402603,4011.3,4009.5,0.002]
[1760554869420,0.124,4010.5,4010.4,2.49351685]
[1760554869634,0.124,4010.5,4010.4,3.51440266]
[1760554870138,2.49270882,4011.7,4010.8,2.49320658]
[1760554870337,2.49270882,4011.7,4010.9,0.4747]
[1760554870718,2.49270882,4011.7,4010.9,2.96790155]
[1760554871157,2.49270882,4011.7,4011.0,2.49314061]
[1760554871330,2.49223187,4012.5,4011.6,0.2262]
[1760554871531,0.2718,4012.9,4011.7,0.4747]
[1760554871854,2.49233243,4012.4,4011.7,0.4747]
[1760554872061,0.099,4012.7,4011.7,0.4747]
[1760554872268,0.124,4011.8,4011.7,0.4747]
[1760554872444,0.124,4011.8,4011.6,0.2262]
[1760554872649,0.124,4011.8,4011.6,0.7009]
[1760554872844,0.124,4011.8,4011.7,0.4747]
[1760554873045,0.124,4011.8,4011.3,0.4747]
[1760554873222,0.124,4011.5,4011.4,0.4747]
[1760554873422,0.124,4011.5,4011.4,2.96759524]
[1760554873659,0.124,4011.5,4011.4,0.4747]
[1760554873839,0.124,4011.5,4011.4,2.96759524]
[1760554874036,0.124,4011.5,4011.4,0.4747]
[1760554874234,0.124,4011.5,4011.2,0.2262]
[1760554874560,2.49269809,4011.8,4011.3,0.4747]
[1760554875059,0.124,4011.3,4010.8,0.4747]
[1760554875259,0.124,4011.2,4010.8,0.4747]
[1760554875427,0.2886,4011.7,4009.8,4.22183913]
[1760554875428,0.124,4010.8,4010.1,2.49370339]
[1760554875627,0.124,4010.8,4010.7,2.49333034]
[1760554876139,0.124,4010.8,4010.7,2.96803034]
[1760554877355,0.124,4010.8,4010.7,0.4747]
[1760554878449,0.124,4010.8,4010.7,2.96803034]
[1760554879336,0.124,4010.8,4010.7,0.4747]
[1760554879662,0.124,4010.8,4010.6,2.49337372]
[1760554879663,0.124,4010.8,4010.3,2.96825634]
[1760554879828,2.49316991,4011.0,4010.4,0.4747]
[1760554880027,0.124,4010.6,4010.0,0.2282]
[1760554880229,0.3303,4010.9,4010.0,0.2282]
[1760554880230,0.124,4010.2,4010.0,0.2282]
[1760554880461,2.61764431,4010.2,4010.0,0.002]
[1760554880641,2.49370339,4010.1,4010.0,0.002]
[1760554881234,2.59400339,4010.1,4010.0,0.002]
[1760554881559,32.59400339,4010.1,4010.0,0.002]
[1760554882548,0.124,4010.2,4010.0,0.002]
[1760554882949,2.49370339,4010.1,4010.0,0.002]
[1760554883461,2.59400339,4010.1,4010.0,0.002]
[1760554885066,2.49370339,4010.1,4010.0,0.002]
[1760554885566,2.61764818,4010.2,4010.0,0.002]
[1760554885764,2.49341199,4010.6,4010.0,0.4736]
[1760554885968,2.4934508,4010.6,4010.1,0.2361]
[1760554886169,0.23,4010.9,4010.1,0.7077]
[1760554886366,0.1025,4011.4,4010.1,0.2361]
[1760554886567,2.493145,4011.0,4010.2,0.4716]
[1760554886774,2.49322287,4010.9,4010.2,0.4716]
[1760554887067,0.2278,4010.8,4010.1,0.2361]
[1760554887267,0.2278,4010.8,4010.0,0.002]
[1760554887447,2.49346244,4010.5,4010.0,0.002]
[1760554887647,1.728,4010.7,4010.0,0.002]
[1760554887882,2.49370339,4010.1,4010.0,0.002]
[1760554888373,44.32420339,4010.1,4010.0,0.002]
[1760554888574,4.22170339,4010.1,4010.0,0.002]
[1760554889343,4.32420339,4010.1,4010.0,0.002]
[1760554890369,34.32420339,4010.1,4010.0,0.002]
[1760554891061,19.96220339,4010.1,4010.0,0.002]
[1760554891691,19.06820339,4010.1,4010.0,0.002]
[1760554892464,34.32420339,4010.1,4010.0,0.002]
[1760554893266,24.25470339,4010.1,4010.0,0.002]
[1760554893455,12.32770339,4010.1,4010.0,0.002]
[1760554893884,34.32420339,4010.1,4010.0,0.002]
[1760554894589,34.22170339,4010.1,4010.0,0.002]
[1760554895006,28.80970339,4010.1,4010.0,0.002]
[1760554895193,12.43470339,4010.1,4010.0,0.002]
[1760554895595,8.69870339,4010.1,4010.0,0.002]
[1760554896293,6.90470339,4010.1,4010.0,0.002]
[1760554896470,4.22170339,4010.1,4010.0,0.002]
[1760554901610,4.22170339,4010.1,4010.0,0.4736]
[1760554902213,4.22170339,4010.1,4010.0,0.002]
[1760554903631,4.22170339,4010.1,4010.0,0.4736]
[1760554903808,1.728,4010.1,4010.0,0.4736]
[1760554904201,2.49353221,4010.4,4010.0,0.4736]
[1760554904430,2.49353221,4010.4,4010.3,0.2361]
[1760554904815,2.49353221,4010.4,4010.3,0.7077]
[1760554905201,1.728,4010.7,4010.3,0.7077]
[1760554905399,2.49341063,4010.6,4010.3,0.2361]
[1760554905631,2.49345734,4010.5,4010.3,0.2361]
[1760554905833,2.49351685,4010.4,4010.3,0.2361]
[1760554906014,2.49351685,4010.4,4010.3,0.7077]
[1760554906642,2.49347471,4010.5,4010.3,0.7077]
[1760554906817,0.001,4010.6,4010.4,0.4716]
[1760554907020,0.124,4010.4,4010.3,0.2361]
[1760554907523,0.124,4010.4,4010.3,0.7077]
[1760554907703,0.001,4010.6,4010.3,0.9808799]
[1760554907904,0.001,4010.6,4010.3,0.2361]
[1760554908443,0.124,4010.3,4010.0,0.4736]
[1760554908735,2.49370339,4010.1,4010.0,0.002]
[1760554910109,2.49365579,4010.2,4010.0,0.002]
[1760554910341,2.49370339,4010.1,4010.0,0.002]
[1760554910712,4.32720339,4010.1,4010.0,0.002]
[1760554911416,34.32720339,4010.1,4010.0,0.002]
[1760554914512,25.50720339,4010.1,4010.0,0.002]
[1760554914823,15.47670339,4010.1,4010.0,0.002]
[1760554915646,4.22170339,4010.1,4010.0,0.002]
[1760554918457,34.32720339,4010.1,4010.0,0.002]
[1760554918961,34.96080339,4010.1,4010.0,0.002]
[1760554919286,16.92970339,4010.1,4010.0,0.002]
[1760554919458,4.22170339,4010.1,4010.0,0.002]
[1760554919635,34.22170339,4010.1,4010.0,0.002]
[1760554920473,4.22170339,4010.1,4010.0,0.002]
[1760554920635,34.22170339,4010.1,4010.0,0.002]
[1760554921055,34.32720339,4010.1,4010.0,0.002]
[1760554922061,19.48620339,4010.1,4010.0,0.002]
[1760554922642,14.32720339,4010.1,4010.0,0.002]
[1760554922967,34.22170339,4010.1,4010.0,0.002]
[1760554923756,11.19170339,4010.1,4010.0,0.002]
[1760554924066,10.51870339,4010.1,4010.0,0.002]
[1760554924571,10.51970339,4010.1,4010.0,0.002]
[1760554924732,1.729,4010.1,4010.0,0.002]
[1760554925069,0.001,4010.1,4010.0,0.4548]
[1760554925270,0.001,4010.1,4010.0,2.94856558]
[1760554925573,0.001,4010.1,4010.0,3.49281029]
[1760554926933,0.001,4010.1,4010.0,3.51774794]
[1760554927334,0.001,4010.1,4010.0,3.64174794]
[1760554928057,0.001,4010.1,4010.0,3.61681029]
[1760554930343,0.001,4010.1,4010.0,5.34481029]
[1760554931945,0.001,4010.1,4010.0,0.99904471]
[1760554932151,0.001,4010.1,4010.0,0.4548]
[1760554933445,0.001,4010.1,4010.0,0.002]
[1760554934439,2.49470339,4010.1,4010.0,0.002]
[1760554934643,34.32290339,4010.1,4010.0,0.002]
[1760554934843,34.95650339,4010.1,4010.0,0.002]
[1760554935651,34.32290339,4010.1,4010.0,0.002]
[1760554935892,4.32290339,4010.1,4010.0,0.002]
[1760554936378,34.32290339,4010.1,4010.0,0.002]
[1760554936759,7.6662,4010.1,4010.0,0.002]
[1760554937078,1.729,4010.1,4010.0,0.002]
[1760554937453,0.001,4010.1,4010.0,0.002]
[1760554937644,0.001,4010.1,4010.0,0.7043874]
[1760554937847,0.001,4010.1,4010.0,0.002]
[1760554938381,32.59490339,4010.1,4010.0,0.002]
[1760554938579,34.95650339,4010.1,4010.0,0.002]
[1760554939357,34.32290339,4010.1,4010.0,0.002]
[1760554939879,34.95650339,4010.1,4010.0,0.002]
[1760554943890,25.86150339,4010.1,4010.0,0.002]
[1760554944068,20.58750339,4010.1,4010.0,0.002]
[1760554944853,4.95650339,4010.1,4010.0,0.002]
[1760554945092,34.95650339,4010.1,4010.0,0.002]
[1760554948233,34.95650339,4010.1,4009.1,0.002]
[1760554948234,3.128361,4008.4,4008.3,0.002]
[1760554948516,3.128361,4008.4,4007.1,0.002]
[1760554948517,45.16881376,4008.1,4008.0,1e-08]
[1760554948671,2.49513448,4007.8,4007.7,1e-08]
[1760554948873,33.12910808,4007.2,4007.1,1e-08]
[1760554949081,34.85710808,4007.2,4007.1,1e-08]
[1760554949298,35.97945343,4007.2,4007.1,1e-08]
[1760554950380,35.35677498,4007.2,4007.1,1e-08]
[1760554952189,2.49663675,4005.4,4005.0,0.2296]
[1760554952503,2.49681655,4005.1,4005.0,0.2296]
[1760554953117,2.49705996,4004.8,4004.7,0.2296]
[1760554953316,1.728,4005.3,4004.7,0.6899]
[1760554953488,1.728,4005.4,4004.8,0.0008]
[1760554953672,2.49669896,4005.3,4005.2,0.2296]